[Event "CRO-ch 2020"]
[Site "Vinkovci"]
[Date "2020.06.25"]
[Round "7.1"]
[White "Plenca, Jadranko"]
[Black "Rogic, Davor"]
[Result "1/2-1/2"]
[ECO "C50"]
[WhiteElo "2483"]
[BlackElo "2492"]
[Annotator "RC"]
[PlyCount "65"]
[EventDate "2020.06.19"]
[EventType "tourn"]
[EventCountry "CRO"]
[SourceTitle "playchess.com"]
[Source "ChessBase"]
[SourceQuality "1"]
[TimeControl "40/5400+30:1800+30"]

1. e4 {[%emt 0:00:00]} e5 {[%emt 0:02:08]} 2. Nf3 {[%emt 0:01:42]} Nc6 {[%emt 0:00:13]} 3. Bc4 {[%emt 0:01:18]} Bc5 {[%emt 0:00:39]} 4. Nc3 {[%emt 0:00:32]} d6 {[%emt 0:03:29]} 5. Na4 {[%emt 0:03:00]} Nf6 {[%emt 0:01:55]} 6. Nxc5 {[%emt 0:00:44]} dxc5 {[%emt 0:00:06]} 7. d3 {[%emt 0:00:27]} Qd6 {[%emt 0:03:31]} 8. a3 {[%emt 0:05:20]} O-O {[%emt 0:07:47]} 9. Be3 {[%emt 0:07:17]} b6 {[%emt 0:05:03]} 10. Nd2 {[%emt 0:03:52]} Be6 {[%emt 0:11:06]} 11. O-O {[%emt 0:02:29]} h6 {[%emt 0:04:40]} 12. h3 {[%emt 0:09:21]} Rad8 {[%emt 0:05:01]} 13. f4 {[%emt 0:06:24]} exf4 {[%emt 0:02:47]} 14. Rxf4 {[%emt 0:00:30]} Nd7 {[%emt 0:03:00]} 15. Bxe6 {[%emt 0:05:38]} Qxe6 {[%emt 0:01:53]} 16. b4 {[%emt 0:05:09]} cxb4 {[%emt 0:06:18]} 17. axb4 {[%emt 0:00:53]} Nxb4 {[%emt 0:00:30]} 18. Rxa7 {[%emt 0:05:35]} Qc6 {[%emt 0:02:00]} 19. Nc4 {[%emt 0:02:53]} b5 {[%emt 0:06:34]} 20. Na3 {[%emt 0:01:19]} Ra8 {[%emt 0:04:30]} 21. Rxa8 {[%emt 0:07:16]} Rxa8 {[%emt 0:00:36]} 22. Qh5 {[%emt 0:00:22]} Nf6 {[%emt 0:05:59]} 23. Qxb5 {[%emt 0:02:17]} Qc3 {[%emt 0:01:37]} 24. Bc5 {[%emt 0:05:42]} Qxa3 {[%emt 0:04:38]} 25. Bxb4 {[%emt 0:03:08]} Qc1+ {[%emt 0:00:04]} 26. Rf1 {[%emt 0:00:30]} Qxc2 {[%emt 0:00:30]} 27. Bc5 {[%emt 0:06:19]} Qc3 {[%emt 0:01:12]} 28. Be7 {[%emt 0:02:11]} Ra2 {[%emt 0:02:41]} 29. Qf5 {[%emt 0:00:30]} Qxd3 {[%emt 0:00:30]} 30. Bxf6 {[%emt 0:06:00]} Qg3 {[%emt 0:07:41]} 31. Qc8+ {[%emt 0:00:25]} Kh7 {[%emt 0:00:04]} 32. Qf5+ {[%emt 0:00:04]} Kg8 {[%emt 0:00:08]} 33. Qc8+ {[%emt 0:00:05]} 1/2-1/2

[Event "CRO-ch 2020"]
[Site "Vinkovci"]
[Date "2020.06.25"]
[Round "7.2"]
[White "Brkic, Ante"]
[Black "Jovanic, Ognjen"]
[Result "1/2-1/2"]
[ECO "C65"]
[WhiteElo "2593"]
[BlackElo "2524"]
[Annotator "RC"]
[PlyCount "62"]
[EventDate "2020.06.19"]
[EventType "tourn"]
[EventCountry "CRO"]
[SourceTitle "playchess.com"]
[Source "ChessBase"]
[SourceQuality "1"]
[TimeControl "40/5400+30:1800+30"]

1. e4 {[%emt 0:00:00]} e5 {[%emt 0:00:12]} 2. Nf3 {[%emt 0:00:00]} Nc6 {[%emt 0:00:09]} 3. Bb5 {[%emt 0:00:00]} Nf6 {[%emt 0:00:07]} 4. d3 {[%emt 0:00:14]} Bc5 {[%emt 0:01:01]} 5. c3 {[%emt 0:00:09]} O-O {[%emt 0:01:24]} 6. O-O {[%emt 0:00:07]} d6 {[%emt 0:00:50]} 7. h3 {[%emt 0:00:11]} Ne7 {[%emt 0:01:54]} 8. d4 {[%emt 0:01:18]} Bb6 {[%emt 0:00:46]} 9. Re1 {[%emt 0:00:33]} Ng6 {[%emt 0:05:32]} 10. Bd3 {[%emt 0:01:04]} Re8 {[%emt 0:02:59]} 11. Nbd2 {[%emt 0:00:11]} c6 {[%emt 0:11:05]} 12. Nf1 {[%emt 0:00:12]} Bc7 {[%emt 0:14:02]} 13. Ng3 {[%emt 0:01:39]} Be6 {[%emt 0:02:11]} 14. Be3 {[%emt 0:09:06]} d5 {[%emt 0:06:02]} 15. exd5 {[%emt 0:27:39]} Bxd5 {[%emt 0:05:09]} 16. Bxg6 {[%emt 0:04:36]} hxg6 {[%emt 0:00:26]} 17. Nxe5 {[%emt 0:01:50]} Bxe5 {[%emt 0:01:36]} 18. dxe5 {[%emt 0:00:03]} Rxe5 {[%emt 0:00:09]} 19. Qd4 {[%emt 0:01:31]} Re8 {[%emt 0:03:23]} 20. c4 {[%emt 0:02:00]} Be6 {[%emt 0:03:03]} 21. Qc3 {[%emt 0:00:06]} b5 {[%emt 0:01:30]} 22. b3 {[%emt 0:02:42]} bxc4 {[%emt 0:01:25]} 23. bxc4 {[%emt 0:00:02]} c5 {[%emt 0:09:25]} 24. Bxc5 {[%emt 0:23:33]} Rc8 {[%emt 0:00:01]} 25. Bxa7 {[%emt 0:00:21]} Rxc4 {[%emt 0:00:10]} 26. Qb2 {[%emt 0:00:08]} Qc7 {[%emt 0:04:19]} 27. Be3 {[%emt 0:06:52]} Rc2 {[%emt 0:00:48]} 28. Qd4 {[%emt 0:04:34]} Rxa2 {[%emt 0:01:22]} 29. Rxa2 {[%emt 0:02:42]} Bxa2 {[%emt 0:00:02]} 30. Rc1 {[%emt 0:00:23]} Qb7 {[%emt 0:06:05]} 31. Qb6 {[%emt 0:03:17]} Qxb6 {[%emt 0:00:32]} 1/2-1/2

[Event "CRO-ch 2020"]
[Site "Vinkovci"]
[Date "2020.06.25"]
[Round "7.3"]
[White "Saric, Ante"]
[Black "Kovacevic, Blazimir"]
[Result "1-0"]
[ECO "A40"]
[WhiteElo "2541"]
[BlackElo "2410"]
[Annotator "ChessBase"]
[PlyCount "71"]
[EventDate "2020.06.19"]
[EventType "tourn"]
[EventCountry "CRO"]
[SourceTitle "playchess.com"]
[Source "ChessBase"]
[SourceQuality "1"]
[TimeControl "40/5400+30:1800+30"]

1. Nf3 {[%emt 0:00:31]} b6 {[%emt 0:00:46]} 2. d4 {[%emt 0:02:37]} Bb7 {[%emt 0:00:10]} 3. Bf4 {[%emt 0:00:32]} g6 {[%emt 0:08:16]} 4. Nc3 {[%emt 0:05:22]} Nf6 {[%emt 0:02:02]} 5. Qd2 {[%emt 0:04:13]} d6 {[%emt 0:04:12]} 6. O-O-O {[%emt 0:01:36]} Nbd7 {[%emt 0:01:04]} 7. d5 {[%emt 0:10:38]} Bg7 {[%emt 0:14:50]} 8. e4 {[%emt 0:07:00]} O-O {[%emt 0:00:51]} 9. Nd4 {[%emt 0:03:30]} Nc5 {[%emt 0:08:05]} 10. f3 {[%emt 0:01:17]} e5 {[%emt 0:00:08]} 11. dxe6 {[%emt 0:00:05]} Nxe6 {[%emt 0:00:04]} 12. Be3 {[%emt 0:14:04]} a6 {[%emt 0:18:49]} 13. g4 {[%emt 0:07:18]} b5 {[%emt 0:04:39]} 14. h4 {[%emt 0:02:01]} Nxd4 {[%emt 0:10:06]} 15. Bxd4 {[%emt 0:01:21]} Re8 {[%emt 0:00:41]} 16. g5 {[%emt 0:09:01]} Nh5 {[%emt 0:00:46]} 17. Bxg7 {[%emt 0:00:05]} Kxg7 {[%emt 0:00:48]} 18. Bh3 {[%emt 0:00:22]} f5 {[%emt 0:06:55]} 19. exf5 {[%emt 0:06:53]} Bxf3 {[%emt 0:04:55]} 20. f6+ {[%emt 0:00:24]} Kf8 {[%emt 0:00:07]} 21. Bg2 {[%emt 0:00:27]} Bxd1 {[%emt 0:01:09]} 22. Bxa8 {[%emt 0:00:29]} Qxa8 {[%emt 0:00:26]} 23. Rxd1 {[%emt 0:00:05]} Re5 {[%emt 0:04:15]} 24. Nd5 {[%emt 0:02:18]} Qc6 {[%emt 0:00:06]} 25. Qd3 {[%emt 0:08:06]} Qd7 {[%emt 0:03:57]} 26. Qc3 {[%emt 0:02:05]} c5 {[%emt 0:02:08]} 27. Nf4 {[%emt 0:03:36]} Qg4 {[%emt 0:02:24]} 28. Nxh5 {[%emt 0:00:14]} gxh5 {[%emt 0:00:04]} 29. Qd3 {[%emt 0:00:42]} Qf4+ {[%emt 0:00:23]} 30. Kb1 {[%emt 0:00:18]} Re4 {[%emt 0:00:03]} 31. Qd5 {[%emt 0:01:57]} Qe5 {[%emt 0:01:43]} 32. Qb7 {[%emt 0:01:47]} Qf5 {[%emt 0:00:31]} 33. Qxa6 {[%emt 0:01:31]} Rd4 {[%emt 0:00:21]} 34. Qa8+ {[%emt 0:00:34]} Kf7 {[%emt 0:00:05]} 35. Qb7+ {[%emt 0:00:06]} Ke6 {[%emt 0:00:16]} 36. Re1+ {[%emt 0:00:11]} 1-0

[Event "CRO-ch 2020"]
[Site "Vinkovci"]
[Date "2020.06.26"]
[Round "8.3"]
[White "Zelcic, Robert"]
[Black "Bosiocic, Marin"]
[Result "1/2-1/2"]
[ECO "B51"]
[WhiteElo "2527"]
[BlackElo "2625"]
[Annotator "RC"]
[PlyCount "118"]
[EventDate "2020.06.19"]
[EventType "tourn"]
[EventCountry "CRO"]
[SourceTitle "playchess.com"]
[Source "ChessBase"]
[SourceQuality "1"]
[TimeControl "40/5400+30:1800+30"]

1. e4 {[%emt 0:00:00]} c5 {[%emt 0:00:00]} 2. Nf3 {[%emt 0:00:00]} d6 {[%emt 0:00:00]} 3. Bb5+ {[%emt 0:00:00]} Nd7 {[%emt 0:00:00]} 4. d4 {[%emt 0:00:00]} cxd4 {[%emt 0:00:11]} 5. Qxd4 {[%emt 0:00:00]} a6 {[%emt 0:00:12]} 6. Bxd7+ {[%emt 0:00:00]} Qxd7 {[%emt 0:00:08]} 7. O-O {[%emt 0:01:01]} e5 {[%emt 0:00:26]} 8. Qd3 {[%emt 0:01:26]} Qc6 {[%emt 0:00:08]} 9. c4 {[%emt 0:01:25]} Be6 {[%emt 0:00:10]} 10. b3 {[%emt 0:01:41]} b5 {[%emt 0:03:04]} 11. Nfd2 {[%emt 0:00:43]} Nf6 {[%emt 0:16:01]} 12. Nc3 {[%emt 0:00:33]} Rc8 {[%emt 0:01:01]} 13. Nd5 {[%emt 0:01:26]} Bxd5 {[%emt 0:00:11]} 14. cxd5 {[%emt 0:11:06]} Qc3 {[%emt 0:00:09]} 15. Qxc3 {[%emt 0:00:14]} Rxc3 {[%emt 0:00:06]} 16. Ba3 {[%emt 0:00:21]} a5 {[%emt 0:18:27]} 17. Rfc1 {[%emt 0:04:43]} Rd3 {[%emt 0:00:42]} 18. Rc8+ {[%emt 0:06:57]} Ke7 {[%emt 0:00:29]} 19. Rc7+ {[%emt 0:00:36]} Kd8 {[%emt 0:00:10]} 20. Rc2 {[%emt 0:00:35]} g6 {[%emt 0:00:53]} 21. f3 {[%emt 0:03:51]} Bh6 {[%emt 0:01:39]} 22. Nf1 {[%emt 0:00:21]} Kd7 {[%emt 0:04:04]} 23. Kf2 {[%emt 0:06:53]} Nh5 {[%emt 0:00:46]} 24. Ke1 {[%emt 0:06:46]} Rb8 {[%emt 0:14:32]} 25. Rc6 {[%emt 0:04:48]} b4 {[%emt 0:00:47]} 26. Bc1 {[%emt 0:00:05]} Bf4 {[%emt 0:04:50]} 27. Ke2 {[%emt 0:05:11]} Rc3 {[%emt 0:00:59]} 28. Rxc3 {[%emt 0:00:23]} bxc3 {[%emt 0:00:05]} 29. g3 {[%emt 0:00:04]} Bxc1 {[%emt 0:00:29]} 30. Rxc1 {[%emt 0:00:01]} a4 {[%emt 0:04:39]} 31. Rxc3 {[%emt 0:00:05]} axb3 {[%emt 0:00:04]} 32. Rxb3 {[%emt 0:00:09]} Ra8 {[%emt 0:02:12]} 33. a3 {[%emt 0:00:08]} Ra7 {[%emt 0:04:28]} 34. Ne3 {[%emt 0:00:24]} Nf6 {[%emt 0:00:07]} 35. Nc4 {[%emt 0:00:36]} Ke7 {[%emt 0:05:32]} 36. Rb6 {[%emt 0:01:19]} Ne8 {[%emt 0:01:09]} 37. g4 {[%emt 0:01:04]} h5 {[%emt 0:03:01]} 38. g5 {[%emt 0:02:51]} h4 {[%emt 0:00:06]} 39. f4 {[%emt 0:00:43]} exf4 {[%emt 0:01:57]} 40. Kf3 {[%emt 0:00:00]} Rc7 {[%emt 0:00:00]} 41. Rc6 {[%emt 0:01:44]} Rxc6 {[%emt 0:02:37]} 42. dxc6 {[%emt 0:00:01]} Kd8 {[%emt 0:00:09]} 43. e5 {[%emt 0:00:17]} d5 {[%emt 0:00:28]} 44. Nd6 {[%emt 0:01:00]} Ng7 {[%emt 0:00:12]} 45. Nxf7+ {[%emt 0:00:08]} Kc7 {[%emt 0:00:12]} 46. Kxf4 {[%emt 0:04:08]} Ne6+ {[%emt 0:00:18]} 47. Kg4 {[%emt 0:00:49]} d4 {[%emt 0:00:50]} 48. Nh8 {[%emt 0:03:58]} d3 {[%emt 0:05:55]} 49. Kf3 {[%emt 0:00:37]} Nxg5+ {[%emt 0:00:29]} 50. Ke3 {[%emt 0:00:04]} d2 {[%emt 0:00:17]} 51. Kxd2 {[%emt 0:00:01]} Nf3+ {[%emt 0:00:19]} 52. Ke3 {[%emt 0:01:47]} Nxe5 {[%emt 0:03:11]} 53. Kf4 {[%emt 0:00:08]} g5+ {[%emt 0:00:51]} 54. Kxe5 {[%emt 0:04:07]} g4 {[%emt 0:00:10]} 55. Kf4 {[%emt 0:01:11]} g3 {[%emt 0:00:05]} 56. hxg3 {[%emt 0:00:06]} hxg3 {[%emt 0:00:05]} 57. Kxg3 {[%emt 0:00:02]} Kxc6 {[%emt 0:00:06]} 58. Nf7 {[%emt 0:00:40]} Kb5 {[%emt 0:00:06]} 59. Ne5 {[%emt 0:00:01]} Ka4 {[%emt 0:00:06]} 1/2-1/2

[Event "CRO-ch 2020"]
[Site "Vinkovci"]
[Date "2020.06.26"]
[Round "8.4"]
[White "Kovacevic, Blazimir"]
[Black "Kozul, Zdenko"]
[Result "1-0"]
[ECO "A36"]
[WhiteElo "2410"]
[BlackElo "2597"]
[Annotator "RC"]
[PlyCount "81"]
[EventDate "2020.06.19"]
[EventType "tourn"]
[EventCountry "CRO"]
[SourceTitle "playchess.com"]
[Source "ChessBase"]
[SourceQuality "1"]
[TimeControl "40/5400+30:1800+30"]

1. c4 {[%emt 0:00:00]} g6 {[%emt 0:03:10]} 2. Nc3 {[%emt 0:00:35]} Bg7 {[%emt 0:00:06]} 3. g3 {[%emt 0:00:18]} c5 {[%emt 0:05:14]} 4. Bg2 {[%emt 0:00:26]} Nc6 {[%emt 0:00:08]} 5. b3 {[%emt 0:00:46]} e6 {[%emt 0:03:01]} 6. Ba3 {[%emt 0:02:04]} d6 {[%emt 0:02:27]} 7. e3 {[%emt 0:00:56]} Nge7 {[%emt 0:01:26]} 8. Nge2 {[%emt 0:00:06]} e5 {[%emt 0:00:42]} 9. d3 {[%emt 0:02:14]} Be6 {[%emt 0:05:09]} 10. Qd2 {[%emt 0:01:59]} a5 {[%emt 0:18:28]} 11. O-O {[%emt 0:06:56]} O-O {[%emt 0:02:20]} 12. Rad1 {[%emt 0:14:31]} b6 {[%emt 0:05:24]} 13. d4 {[%emt 0:08:56]} exd4 {[%emt 0:10:53]} 14. exd4 {[%emt 0:00:05]} Bg4 {[%emt 0:00:09]} 15. f3 {[%emt 0:02:47]} Bf5 {[%emt 0:00:32]} 16. g4 {[%emt 0:05:58]} Bc8 {[%emt 0:01:11]} 17. dxc5 {[%emt 0:04:12]} dxc5 {[%emt 0:00:07]} 18. Qxd8 {[%emt 0:00:10]} Rxd8 {[%emt 0:01:57]} 19. Rxd8+ {[%emt 0:00:13]} Nxd8 {[%emt 0:00:05]} 20. Na4 {[%emt 0:16:16]} Rb8 {[%emt 0:01:40]} 21. Rd1 {[%emt 0:00:04]} Ndc6 {[%emt 0:01:03]} 22. h3 {[%emt 0:00:18]} Kf8 {[%emt 0:08:59]} 23. Kf2 {[%emt 0:05:32]} Ke8 {[%emt 0:00:39]} 24. f4 {[%emt 0:02:09]} Nb4 {[%emt 0:15:16]} 25. Bxb4 {[%emt 0:01:27]} cxb4 {[%emt 0:00:45]} 26. Rd6 {[%emt 0:13:03]} b5 {[%emt 0:00:58]} 27. cxb5 {[%emt 0:02:41]} Rxb5 {[%emt 0:00:26]} 28. Nd4 {[%emt 0:00:06]} Bxd4+ {[%emt 0:03:00]} 29. Rxd4 {[%emt 0:00:05]} h5 {[%emt 0:00:04]} 30. Bf3 {[%emt 0:01:04]} hxg4 {[%emt 0:03:06]} 31. hxg4 {[%emt 0:00:03]} Bd7 {[%emt 0:01:13]} 32. Rd6 {[%emt 0:01:44]} Nc8 {[%emt 0:00:37]} 33. Ra6 {[%emt 0:01:14]} Kd8 {[%emt 0:01:15]} 34. Ke3 {[%emt 0:02:18]} g5 {[%emt 0:02:39]} 35. f5 {[%emt 0:00:04]} Kc7 {[%emt 0:01:48]} 36. Kd4 {[%emt 0:00:25]} Bxf5 {[%emt 0:01:18]} 37. gxf5 {[%emt 0:03:20]} Rxf5 {[%emt 0:00:06]} 38. Rc6+ {[%emt 0:00:13]} Kd7 {[%emt 0:00:45]} 39. Nc5+ {[%emt 0:00:44]} Ke7 {[%emt 0:00:07]} 40. Rc7+ {[%emt 0:00:00]} Kf6 {[%emt 0:00:00]} 41. Be4 {[%emt 0:03:09]} 1-0

[Event "CRO-ch 2020"]
[Site "Vinkovci"]
[Date "2020.06.26"]
[Round "8.6"]
[White "Plenca, Jadranko"]
[Black "Brkic, Ante"]
[Result "0-1"]
[ECO "B51"]
[WhiteElo "2483"]
[BlackElo "2593"]
[Annotator "RC"]
[PlyCount "108"]
[EventDate "2020.06.19"]
[EventType "tourn"]
[EventCountry "CRO"]
[SourceTitle "playchess.com"]
[Source "ChessBase"]
[SourceQuality "1"]
[TimeControl "40/5400+30:1800+30"]

1. e4 {[%emt 0:00:00]} c5 {[%emt 0:00:00]} 2. Nf3 {[%emt 0:00:04]} d6 {[%emt 0:00:00]} 3. Bb5+ {[%emt 0:00:04]} Nd7 {[%emt 0:00:00]} 4. a4 {[%emt 0:00:43]} Ngf6 {[%emt 0:00:00]} 5. Nc3 {[%emt 0:00:06]} a6 {[%emt 0:00:05]} 6. Be2 {[%emt 0:00:06]} g6 {[%emt 0:05:08]} 7. O-O {[%emt 0:02:58]} Bg7 {[%emt 0:00:04]} 8. a5 {[%emt 0:01:26]} O-O {[%emt 0:00:09]} 9. Re1 {[%emt 0:00:24]} b5 {[%emt 0:01:17]} 10. axb6 {[%emt 0:04:59]} Bb7 {[%emt 0:00:05]} 11. d3 {[%emt 0:03:16]} Qxb6 {[%emt 0:07:35]} 12. h3 {[%emt 0:03:20]} c4 {[%emt 0:16:45]} 13. Ra2 {[%emt 0:11:05]} cxd3 {[%emt 0:06:08]} 14. cxd3 {[%emt 0:00:07]} Qc7 {[%emt 0:03:09]} 15. Bf1 {[%emt 0:02:52]} e5 {[%emt 0:01:17]} 16. Qa4 {[%emt 0:10:22]} d5 {[%emt 0:20:52]} 17. Qa5 {[%emt 0:00:43]} Qd6 {[%emt 0:05:13]} 18. b3 {[%emt 0:05:24]} Rfc8 {[%emt 0:03:55]} 19. Ba3 {[%emt 0:02:22]} Qc7 {[%emt 0:05:02]} 20. Bb4 {[%emt 0:04:39]} Qc6 {[%emt 0:03:10]} 21. d4 {[%emt 0:07:41]} exd4 {[%emt 0:12:32]} 22. Nxd4 {[%emt 0:01:12]} Qb6 {[%emt 0:00:01]} 23. Qxb6 {[%emt 0:02:15]} Nxb6 {[%emt 0:00:02]} 24. e5 {[%emt 0:01:04]} Ne4 {[%emt 0:00:02]} 25. Nxe4 {[%emt 0:00:53]} dxe4 {[%emt 0:00:02]} 26. Bd6 {[%emt 0:01:34]} Rd8 {[%emt 0:00:49]} 27. Ne2 {[%emt 0:12:21]} Re8 {[%emt 0:00:47]} 28. Rc1 {[%emt 0:10:23]} Bxe5 {[%emt 0:00:52]} 29. Bxe5 {[%emt 0:00:04]} Rxe5 {[%emt 0:00:01]} 30. Rc7 {[%emt 0:00:05]} Rb8 {[%emt 0:00:50]} 31. Nd4 {[%emt 0:00:56]} Nd5 {[%emt 0:02:25]} 32. Rc5 {[%emt 0:01:31]} Re7 {[%emt 0:00:48]} 33. Raa5 {[%emt 0:01:15]} Nb4 {[%emt 0:00:45]} 34. Ra4 {[%emt 0:01:25]} Nd3 {[%emt 0:00:41]} 35. Rc3 {[%emt 0:01:14]} Nf4 {[%emt 0:04:50]} 36. g3 {[%emt 0:04:18]} Nd5 {[%emt 0:00:48]} 37. Rc5 {[%emt 0:00:05]} Rd7 {[%emt 0:01:18]} 38. Nc2 {[%emt 0:00:58]} e3 {[%emt 0:00:40]} 39. fxe3 {[%emt 0:00:30]} Re8 {[%emt 0:00:16]} 40. Rd4 {[%emt 0:00:00]} Ree7 {[%emt 0:00:00]} 41. Ra5 {[%emt 0:09:53]} Rc7 {[%emt 0:03:24]} 42. e4 {[%emt 0:02:39]} Nf6 {[%emt 0:15:19]} 43. e5 {[%emt 0:02:44]} Ne4 {[%emt 0:04:18]} 44. Rc4 {[%emt 0:03:07]} Nxg3 {[%emt 0:00:45]} 45. Rxc7 {[%emt 0:00:05]} Rxc7 {[%emt 0:00:04]} 46. Bc4 {[%emt 0:00:04]} Ne4 {[%emt 0:08:03]} 47. e6 {[%emt 0:01:11]} fxe6 {[%emt 0:00:20]} 48. Nd4 {[%emt 0:00:03]} Nd2 {[%emt 0:01:28]} 49. Bxe6+ {[%emt 0:01:22]} Kg7 {[%emt 0:00:15]} 50. Ra2 {[%emt 0:02:20]} Rc1+ {[%emt 0:00:10]} 51. Kf2 {[%emt 0:00:21]} Ne4+ {[%emt 0:00:14]} 52. Ke3 {[%emt 0:00:08]} Rc3+ {[%emt 0:00:58]} 53. Kf4 {[%emt 0:01:04]} Kf6 {[%emt 0:01:27]} 54. h4 {[%emt 0:00:04]} Rd3 {[%emt 0:00:51]} 0-1

[Event "CRO-ch 2020"]
[Site "Vinkovci"]
[Date "2020.06.28"]
[Round "10.3"]
[White "Kovacevic, Blazimir"]
[Black "Martinovic, Sasa"]
[Result "0-1"]
[ECO "A25"]
[WhiteElo "2410"]
[BlackElo "2532"]
[Annotator "ChessBase"]
[PlyCount "62"]
[EventDate "2020.06.19"]
[EventType "tourn"]
[EventCountry "CRO"]
[SourceTitle "playchess.com"]
[Source "ChessBase"]
[SourceQuality "1"]
[TimeControl "40/5400+30:1800+30"]

1. c4 {[%emt 0:00:00]} g6 {[%emt 0:00:00]} 2. Nc3 {[%emt 0:00:00]} Bg7 {[%emt 0:00:00]} 3. g3 {[%emt 0:00:00]} e5 {[%emt 0:00:00]} 4. Bg2 {[%emt 0:00:00]} d6 {[%emt 0:00:07]} 5. d3 {[%emt 0:00:00]} Nc6 {[%emt 0:00:16]} 6. e3 {[%emt 0:00:31]} Nf6 {[%emt 0:01:26]} 7. Nge2 {[%emt 0:00:10]} O-O {[%emt 0:00:16]} 8. O-O {[%emt 0:00:13]} Be6 {[%emt 0:00:18]} 9. Nd5 {[%emt 0:00:08]} Qd7 {[%emt 0:00:46]} 10. Nec3 {[%emt 0:01:15]} Ne8 {[%emt 0:00:59]} 11. f4 {[%emt 0:00:57]} Bh3 {[%emt 0:17:11]} 12. Bxh3 {[%emt 0:11:32]} Qxh3 {[%emt 0:00:06]} 13. Bd2 {[%emt 0:10:55]} exf4 {[%emt 0:07:15]} 14. gxf4 {[%emt 0:00:46]} f5 {[%emt 0:06:30]} 15. Rf3 {[%emt 0:10:15]} Qh4 {[%emt 0:03:45]} 16. Qb3 {[%emt 0:07:42]} Nd8 {[%emt 0:19:04]} 17. c5 {[%emt 0:03:11]} Rf7 {[%emt 0:00:44]} 18. cxd6 {[%emt 0:00:14]} cxd6 {[%emt 0:01:06]} 19. Be1 {[%emt 0:06:41]} Qh5 {[%emt 0:00:27]} 20. Kg2 {[%emt 0:01:29]} Ne6 {[%emt 0:04:28]} 21. Rh3 {[%emt 0:08:21]} Qg4+ {[%emt 0:00:03]} 22. Rg3 {[%emt 0:00:05]} Qh5 {[%emt 0:00:19]} 23. Rh3 {[%emt 0:03:48]} Qg4+ {[%emt 0:00:04]} 24. Bg3 {[%emt 0:00:09]} g5 {[%emt 0:02:18]} 25. Rf1 {[%emt 0:10:46]} h6 {[%emt 0:07:42]} 26. e4 {[%emt 0:01:40]} gxf4 {[%emt 0:07:59]} 27. Nxf4 {[%emt 0:07:43]} Nd4 {[%emt 0:02:28]} 28. Qc4 {[%emt 0:01:20]} fxe4 {[%emt 0:08:08]} 29. Nh5 {[%emt 0:06:42]} Nf5 {[%emt 0:02:56]} 30. Qxf7+ {[%emt 0:05:46]} Kxf7 {[%emt 0:00:04]} 31. Rh4 {[%emt 0:00:26]} Qf3+ {[%emt 0:02:33]} 0-1

[Event "CRO-ch 2020"]
[Site "Vinkovci"]
[Date "2020.07.01"]
[Round "11.2"]
[White "Kozul, Zdenko"]
[Black "Brkic, Ante"]
[Result "1-0"]
[ECO "D38"]
[WhiteElo "2597"]
[BlackElo "2593"]
[Annotator "ChessBase"]
[PlyCount "49"]
[EventDate "2020.06.19"]
[EventType "tourn"]
[EventCountry "CRO"]
[SourceTitle "playchess.com"]
[Source "ChessBase"]
[SourceQuality "1"]
[TimeControl "40/5400+30:1800+30"]

1. d4 {[%emt 0:02:01]} Nf6 {[%emt 0:00:00]} 2. c4 {[%emt 0:00:08]} e6 {[%emt 0:00:00]} 3. Nf3 {[%emt 0:00:57]} d5 {[%emt 0:00:00]} 4. Nc3 {[%emt 0:00:31]} Bb4 {[%emt 0:00:06]} 5. Bg5 {[%emt 0:00:22]} h6 {[%emt 0:00:07]} 6. Bxf6 {[%emt 0:00:11]} Qxf6 {[%emt 0:00:05]} 7. e3 {[%emt 0:03:23]} O-O {[%emt 0:00:10]} 8. Rc1 {[%emt 0:00:06]} dxc4 {[%emt 0:00:44]} 9. Bxc4 {[%emt 0:00:09]} c5 {[%emt 0:00:03]} 10. dxc5 {[%emt 0:01:49]} Bxc5 {[%emt 0:00:43]} 11. Qc2 {[%emt 0:00:49]} Qe7 {[%emt 0:03:10]} 12. Ne4 {[%emt 0:14:10]} Bb4+ {[%emt 0:26:23]} 13. Ke2 {[%emt 0:00:34]} Bd7 {[%emt 0:00:04]} 14. a3 {[%emt 0:01:57]} Ba5 {[%emt 0:01:53]} 15. b4 {[%emt 0:00:12]} Bb6 {[%emt 0:00:41]} 16. g4 {[%emt 0:00:17]} Bc6 {[%emt 0:34:30]} 17. Rhg1 {[%emt 0:20:49]} Nd7 {[%emt 0:06:24]} 18. g5 {[%emt 0:00:21]} h5 {[%emt 0:03:49]} 19. g6 {[%emt 0:14:56]} Rac8 {[%emt 0:05:00]} 20. Neg5 {[%emt 0:03:49]} f6 {[%emt 0:04:07]} 21. Bxe6+ {[%emt 0:03:10]} Kh8 {[%emt 0:00:04]} 22. Nf7+ {[%emt 0:01:35]} Rxf7 {[%emt 0:00:19]} 23. Qf5 {[%emt 0:00:18]} Kg8 {[%emt 0:07:38]} 24. gxf7+ {[%emt 0:02:05]} Kf8 {[%emt 0:00:03]} 25. Nh4 {[%emt 0:00:48]} 1-0

[Event "CRO-ch 2020"]
[Site "Vinkovci"]
[Date "2020.07.01"]
[Round "11.3"]
[White "Bosiocic, Marin"]
[Black "Plenca, Jadranko"]
[Result "1-0"]
[ECO "C65"]
[WhiteElo "2625"]
[BlackElo "2483"]
[Annotator "ChessBase"]
[PlyCount "73"]
[EventDate "2020.06.19"]
[EventType "tourn"]
[EventCountry "CRO"]
[SourceTitle "playchess.com"]
[Source "ChessBase"]
[SourceQuality "1"]
[TimeControl "40/5400+30:1800+30"]

1. e4 {[%emt 0:00:00]} e5 {[%emt 0:02:06]} 2. Nf3 {[%emt 0:00:00]} Nc6 {[%emt 0:00:06]} 3. Bb5 {[%emt 0:00:00]} Bc5 {[%emt 0:01:03]} 4. c3 {[%emt 0:00:35]} Nf6 {[%emt 0:00:09]} 5. d3 {[%emt 0:00:06]} O-O {[%emt 0:00:26]} 6. O-O {[%emt 0:00:11]} Re8 {[%emt 0:01:12]} 7. Bg5 {[%emt 0:00:41]} h6 {[%emt 0:01:13]} 8. Bh4 {[%emt 0:00:10]} Bf8 {[%emt 0:01:34]} 9. Nbd2 {[%emt 0:03:32]} d6 {[%emt 0:01:16]} 10. Re1 {[%emt 0:02:00]} Bd7 {[%emt 0:01:18]} 11. a4 {[%emt 0:00:26]} g5 {[%emt 0:01:04]} 12. Bg3 {[%emt 0:00:37]} Bg7 {[%emt 0:00:34]} 13. Bc4 {[%emt 0:04:12]} Be6 {[%emt 0:09:49]} 14. h4 {[%emt 0:06:44]} g4 {[%emt 0:05:49]} 15. Nh2 {[%emt 0:00:06]} Qd7 {[%emt 0:02:57]} 16. Bxe6 {[%emt 0:00:38]} Qxe6 {[%emt 0:00:12]} 17. Nc4 {[%emt 0:01:34]} d5 {[%emt 0:04:32]} 18. exd5 {[%emt 0:00:32]} Qxd5 {[%emt 0:04:08]} 19. Nxg4 {[%emt 0:02:08]} Nh7 {[%emt 0:08:34]} 20. Nge3 {[%emt 0:04:41]} Qd7 {[%emt 0:01:37]} 21. Qf3 {[%emt 0:07:22]} Qxd3 {[%emt 0:01:07]} 22. Rad1 {[%emt 0:00:06]} Qg6 {[%emt 0:00:28]} 23. Nf5 {[%emt 0:00:48]} Re6 {[%emt 0:07:00]} 24. Rd7 {[%emt 0:06:16]} Nf6 {[%emt 0:06:40]} 25. h5 {[%emt 0:05:54]} Qg5 {[%emt 0:06:41]} 26. Bh4 {[%emt 0:05:19]} Qxh5 {[%emt 0:00:42]} 27. Qxh5 {[%emt 0:00:07]} Nxh5 {[%emt 0:00:05]} 28. Rxc7 {[%emt 0:00:32]} Rb8 {[%emt 0:01:17]} 29. b4 {[%emt 0:03:43]} e4 {[%emt 0:05:18]} 30. Nxg7 {[%emt 0:00:20]} Nxg7 {[%emt 0:00:06]} 31. b5 {[%emt 0:01:26]} Ne5 {[%emt 0:02:09]} 32. Nxe5 {[%emt 0:00:07]} Rxe5 {[%emt 0:00:05]} 33. Bg3 {[%emt 0:00:07]} Ree8 {[%emt 0:00:43]} 34. Rd7 {[%emt 0:00:38]} Rbc8 {[%emt 0:00:14]} 35. Rxb7 {[%emt 0:00:05]} Rxc3 {[%emt 0:00:04]} 36. Rxa7 {[%emt 0:00:44]} Rb3 {[%emt 0:01:10]} 37. Bf4 {[%emt 0:02:57]} 1-0